Cogmind - Beta 16 @@@ ROGUE MODE // 2026.02.02 @ 10:37:17 Player: ae Result: Destroyed by S-43 Plague with Heavy Machine Gun Performance ------------- Evolutions (9) 4500 Regions Visited (17) 3400 Robots Destroyed (99) 495 Value Destroyed (3429) 3429 Prototype IDs (12) 240 Alien Tech Used (4) 800 Bonus (7625) 7625 TOTAL SCORE: 20489 Bonus ------- High Alert Combat Kills 33 Follower Combat Kills 92 Entered DSFs 1000 Met Warlord at Base 500 MAIN.C Attacked Warlord 500 Used Core Reset Matrix 3000 Met Warlord at Research 2000 Scanned by Researcher 500 Cogmind --------- Core Integrity 0/1600 Matter 300/300 Energy 99/100 System Corruption 4% Temperature Cool (0) Movement Core (150) Ox2 Location -1/Access Parts ------- > --- POWER (2) -------- (None) > --- PROPULSION (9) --- (None) > --- UTILITY (8) ------ (None) > --- WEAPON (6) ------- Enhanced Force Lance > --- INVENTORY (5) ---- Micro Antimatter Reactor Quantum Reactor Compact Battery (200) Peak State ------------ > --- POWER ------------ Particle Reactor > --- PROPULSION ------- Xenon Bombardment Thruster Xenon Bombardment Thruster Nuclear Pulse Array Nuclear Pulse Array Impulse Thruster Array > --- UTILITY ---------- Advanced Cooling System Machine Analyzer Advanced Sensor Array Seismic Detector Improved Reaction Control System Graphene Brace Experimental EM Shield > --- WEAPON ----------- Enhanced Hardcell Cannon Advanced Remote Datajack Kinetic Spear Enhanced Force Lance > --- INVENTORY -------- Micro Antimatter Reactor Xenon Bombardment Thruster Xenon Bombardment Thruster Advanced Sensor Array Enhanced Force Lance [Rating: 127] Favorites ----------- Power Meta Core Engine Ion Engine Power Core Meta Core Reactor Particle Reactor Propulsion Nuclear Pulse Array Treads Light Treads Leg Aluminum Leg Wheel Armored Wheel Hover Unit Improved Antigrav System Flight Unit Nuclear Pulse Array Utility Advanced Sensor Array Device Advanced Sensor Array Storage Medium Storage Unit Processor Machine Analyzer Hackware Hacking Suite Protection Layered Heavy Armor Plating Weapon Kinetic Spear Energy Gun Heavy Laser Energy Cannon Ion Cannon Ballistic Gun Light Assault Rifle Ballistic Cannon Enhanced Hardcell Cannon Special Weapon Advanced Remote Datajack Slashing Weapon Great Axe Piercing Weapon Kinetic Spear Special Melee Weapon Advanced Datajack Build | -11 -10 -10 -8 -7 -7 -6 -5 -4 -4 -4 -4 -3 -3 -3 -2 -2 -1 ------- Run | Yrd Mat Sub Mat Fac DSF Fac Fac Fac Upp Upp War Pro Res DSF Res Qua Acc Slots Evolved 18 | . . . 4 2 . 2 2 2 . . . . 2 . 2 . 2 Power 1 | . . . . . . . . . . . . . . . . . 1 Propulsion 7 | . . . . 2 . . . 2 . . . . 2 . . . 1 Utility 6 | . . . 2 . . . 2 . . . . . . . 2 . . Weapon 4 | . . . 2 . . 2 . . . . . . . . . . . Parts Attached 159 | 7 10 11 20 2 1 25 34 6 1 . 4 . 3 5 13 7 10 Power 16 | 1 2 2 . . . 1 3 . 1 . 2 . . . 1 2 1 Engine 4 | 1 1 1 . . . . 1 . . . . . . . . . . Core 8 | . 1 1 . . . 1 2 . 1 . 2 . . . . . . Reactor 4 | . . . . . . . . . . . . . . . 1 2 1 Propulsion 43 | 2 2 3 3 2 . 6 12 1 . . . . 1 2 6 1 2 Treads 4 | . . 1 1 . . 2 . . . . . . . . . . . Leg 10 | 2 2 . 1 1 . 2 2 . . . . . . . . . . Wheel 14 | . . 2 1 1 . 2 8 . . . . . . . . . . Hover 2 | . . . . . . . . . . . . . . 1 1 . . Flight 13 | . . . . . . . 2 1 . . . . 1 1 5 1 2 Utility 49 | 2 2 2 8 . 1 6 8 3 . . 2 . 2 2 2 4 5 Device 36 | 1 1 2 5 . 1 5 6 3 . . 2 . 1 2 1 4 2 Storage 3 | 1 1 . . . . . . . . . . . . . . . 1 Processor 4 | . . . 1 . . . . . . . . . 1 . 1 . 1 Hackware 1 | . . . . . . . . . . . . . . . . . 1 Protection 5 | . . . 2 . . 1 2 . . . . . . . . . . Artifact . | . . . . . . . . . . . . . . . . . . Weapon 51 | 2 4 4 9 . . 12 11 2 . . . . . 1 4 . 2 Energy Gun 13 | . . 1 6 . . 6 . . . . . . . . . . . Energy Cannon 3 | . . . . . . 1 1 1 . . . . . . . . . Ballistic Gun 18 | 2 4 2 3 . . 4 2 . . . . . . . 1 . . Ballistic Cannon 9 | . . 1 . . . 1 6 . . . . . . . 1 . . Launcher . | . . . . . . . . . . . . . . . . . . Special Weapon 2 | . . . . . . . . . . . . . . 1 . . 1 Impact Weapon . | . . . . . . . . . . . . . . . . . . Slashing Weapon 1 | . . . . . . . 1 . . . . . . . . . . Piercing Weapon 4 | . . . . . . . 1 . . . . . . . 2 . 1 Special Melee Weapon 1 | . . . . . . . . 1 . . . . . . . . . Unidentified Prototypes 13 | . . 1 1 . . 2 2 . . 1 1 . . . . 5 . Parts Lost 77 | . 1 6 5 . . 5 29 . 2 . . . . 4 1 11 13 Power 6 | . 1 1 . . . . 2 . 1 . . . . . 1 . . Propulsion 27 | . . 2 1 . . 2 11 . . . . . . 2 . 5 4 Utility 24 | . . . 1 . . 2 6 . 1 . . . . 2 . 5 7 Weapon 20 | . . 3 3 . . 1 10 . . . . . . . . 1 2 Highest Loss Streak 11 | . 1 6 1 . . 1 11 . 2 . . . . 3 1 11 10 To Critical Strikes . | . . . . . . . . . . . . . . . . . . Average Backups 6 | 4 9 8 9 10 9 8 6 3 4 4 4 4 3 4 4 4 3 Power . | . . 1 2 2 1 . . . . 1 . . . . . 1 1 Propulsion 1 | 2 3 2 2 2 . . . 2 1 1 1 2 1 2 2 1 . Utility 2 | . 2 3 3 5 6 5 3 . 1 1 2 2 2 1 1 1 1 Weapon 1 | . 2 . 1 1 1 1 2 . 1 . . . . . . 1 . Tool/Special . | . . . . . . . . . . . . . . . . . . Unused Backups 33 | . 4 1 4 . 2 10 2 . . 1 1 . . 1 6 1 . Power 10 | . . 1 2 . 1 1 . . . 1 1 . . 1 2 . . Propulsion 10 | . 2 . . . . 5 . . . . . . . . 3 . . Utility 10 | . 2 . 1 . 1 4 2 . . . . . . . . . . Weapon 2 | . . . 1 . . . . . . . . . . . 1 . . Tool/Special 1 | . . . . . . . . . . . . . . . . 1 . Average Slot Usage (%) 71 | . 99 97 97 88 100 92 66 53 50 47 47 47 47 53 58 62 26 Core 4 | . 9 8 8 7 7 6 3 5 2 5 5 5 4 4 1 . . Treads 2 | . . 9 7 7 7 8 1 . . . . . . . . . . Leg 3 | . 28 4 . 3 7 2 1 . . . . . . . . . . Wheel 4 | . . 14 9 7 15 10 12 . . . . . . . . . . Flight 7 | . . . . . . . . 15 15 15 15 15 19 19 17 19 6 Device 14 | . 14 15 21 15 15 10 14 16 16 10 10 10 9 14 15 19 5 Storage 4 | . 14 11 8 7 7 6 3 . . . . . . . . . . Processor 1 | . . . . 7 7 4 . . . . . . . . 3 4 6 Protection 1 | . . . 3 . . . . 5 5 5 5 5 4 1 . . . Energy Gun 5 | . . 7 18 15 15 18 3 . . . . . . . . . . Ballistic Gun 9 | . 28 21 17 15 15 16 12 . . . . . . . . . . Ballistic Cannon 1 | . . . . . . . 7 . . . . . . . 1 3 . Piercing Weapon 2 | . . . . . . . . 5 5 5 5 5 4 4 6 7 4 Special Melee Weapon 1 | . . . . . . . . 3 5 5 5 5 4 . . . . Peak Build Rating 127 | 7 10 27 44 46 48 87 88 90 90 82 91 82 92 95 125 127 72 Average Rating 67 | 5 9 21 36 44 46 67 74 84 84 82 82 82 85 87 105 108 44 On Entrance 59 | . 7 8 22 44 46 48 79 69 90 82 82 82 82 92 89 116 40 Avg Prop Armor Cover (%) 8 | . . 11 8 . 13 11 6 . . . 9 . . . 4 . . Naked Turns . | . . . . . . . . . . . . . . . . . . Heaviest Build 58 | 13 18 26 35 30 30 49 56 34 39 39 42 39 41 44 58 54 14 Greatest Support 58 | 20 20 36 36 30 30 40 52 39 39 39 39 39 44 44 54 58 22 Greatest Overweight (x) 12 | . . 1 1 1 . 3 11 . 8 . 12 . . . 1 . 4 Average Overweight (x) . | . . . . . . 1 . . . . . . . . . . . Largest Inventory Capacity 10 | 8 10 10 10 10 10 10 10 5 5 5 5 5 5 5 5 5 5 Average Capacity 7 | 6 9 10 10 10 10 10 8 5 5 5 5 5 5 5 5 5 5 Most Carried 10 | 7 10 10 10 10 10 10 10 5 5 5 5 5 5 5 5 5 4 Average Carried 7 | 4 9 9 9 9 9 9 7 4 4 4 4 5 4 4 4 4 3 Final Capacity 10 | 8 10 10 10 10 10 10 5 5 5 5 5 5 5 5 5 5 5 Final Carried 10 | 7 10 10 10 8 10 10 5 5 5 5 5 5 3 5 5 4 3 Class Distribution -------------------- 39% | Mutant 13% | Scavenger-Sprinter 13% | Executioner 9% | Scavenger-Executioner 4% | Skirmisher 3% | Scavenger-Gunner 3% | Scavenger-Skirmisher 3% | Scavenger-Tank Dominant Class ---------------- Mutant | -10/Materials Skirmisher | -10/Subcaves Scavenger-Tank | -8/Materials Scavenger-Tank | -7/Factory Scavenger-Gunner | -7/DSF Scavenger-Executioner | -6/Factory Executioner | -5/Factory Mutant | -4/Factory Mutant | -4/Upper Caves Mutant | -4/Upper Caves Mutant | -4/Warlord Mutant | -3/Proximity Caves Sprinter | -3/Research Sprinter | -3/DSF Scavenger-Sprinter | -2/Research Scavenger-Sprinter | -2/Quarantine Scavenger-Mutant | -1/Access Resources | -11 -10 -10 -8 -7 -7 -6 -5 -4 -4 -4 -4 -3 -3 -3 -2 -2 -1 ----------- Run | Yrd Mat Sub Mat Fac DSF Fac Fac Fac Upp Upp War Pro Res DSF Res Qua Acc Matter Collected 3255 | 294 257 130 566 . 2 653 616 137 50 10 50 . 20 65 166 117 122 Remotely 336 | 238 98 . . . . . . . . . . . . . . . . Salvage Created 4446 | 103 471 104 1209 . 64 791 585 103 257 . . . 48 148 455 82 26 Parts 233 | 4 45 11 72 . 4 39 21 4 7 . . . 1 . 15 5 5 Haulers Intercepted 7 | . 2 . 2 . . . 1 1 . . . . . . 1 . . Recyclers Shooed 3 | . . . . . . 1 2 . . . . . . . . . . Parts Field Recycled . | . . . . . . . . . . . . . . . . . . Retrieved Matter . | . . . . . . . . . . . . . . . . . . Parts Self-Destructed 9 | . . 7 . . . . . . 2 . . . . . . . . Prevented . | . . . . . . . . . . . . . . . . . . Parts Restored . | . . . . . . . . . . . . . . . . . . Kills | -11 -10 -10 -8 -7 -7 -6 -5 -4 -4 -4 -4 -3 -3 -3 -2 -2 -1 ------- Run | Yrd Mat Sub Mat Fac DSF Fac Fac Fac Upp Upp War Pro Res DSF Res Qua Acc Combat Hostiles Destroyed 70 | . 10 3 27 . 1 15 12 . . . . . . . 1 . 1 Melee 3 | . . . . . . . 1 . . . . . . . 1 . 1 Guns 57 | . 10 2 26 . 1 13 5 . . . . . . . . . . Cannons 9 | . . 1 . . . 2 6 . . . . . . . . . . Classes Destroyed 19 | 2 7 1 5 . 1 2 . . . . . . . . . 1 . Worker 6 | . 2 . . . . 1 2 1 . . . . . . . . . Builder 2 | . . . 1 . . . 1 . . . . . . . . . . Tunneler 1 | 1 . . . . . . . . . . . . . . . . . Hauler 7 | . 2 . 2 . . . 1 1 . . . . . . 1 . . Recycler 2 | 1 . . . . . . . . . . . . . . 1 . . Mechanic 2 | . 1 . . . . . . . . . . . . . 1 . . Operator 2 | . 1 . . . . 1 . . . . . . . . . . . Watcher 6 | . 1 . . . . 2 . . . . . . 1 . 1 1 . Swarmer 19 | . 6 . 5 . . 5 2 . . . . . . . . . 1 Grunt 28 | . 4 . 14 . . 4 6 . . . . . . . . . . Brawler 1 | . . . 1 . . . . . . . . . . . . . . Duelist 1 | . . . . . . 1 . . . . . . . . . . . Researcher 1 | . . . . . . . . . . . . . . . . 1 . Sentry 6 | . . . 5 . . . . . . . . . . . 1 . . Specialist 3 | . . . . . 1 2 . . . . . . . . . . . Hunter 3 | . . . 1 . . . 2 . . . . . . . . . . Programmer 4 | . . . . . . 2 2 . . . . . . . . . . Heavy 2 | . . . 1 . . 1 . . . . . . . . . . . Subdweller 3 | . . 3 . . . . . . . . . . . . . . . Best Kill Streak 6 | 1 4 3 4 . 1 4 6 2 . . . . 1 . 1 1 1 Combat Bots Only 4 | . 3 3 3 . 1 4 3 . . . . . . . 1 . 1 Max Kills in Single Turn 2 | 1 1 1 2 . 1 1 1 1 . . . . 1 . 1 1 1 Gunslinging . | . . . . . . . . . . . . . . . . . . Exploded . | . . . . . . . . . . . . . . . . . . Melee 1 | . . . . . . . 1 . . . . . . . 1 . 1 Uniques/NPCs Destroyed . | . . . . . . . . . . . . . . . . . . Combat | -11 -10 -10 -8 -7 -7 -6 -5 -4 -4 -4 -4 -3 -3 -3 -2 -2 -1 -------- Run | Yrd Mat Sub Mat Fac DSF Fac Fac Fac Upp Upp War Pro Res DSF Res Qua Acc Hostile Shots Fired 1122 | . 51 49 100 . 2 71 368 2 86 36 5 32 . 11 15 129 165 Missed 381 | . 17 9 22 . 1 13 102 1 47 19 2 20 . 4 8 54 62 Hits 741 | . 34 40 78 . 1 58 266 1 39 17 3 12 . 7 7 75 103 Melee 5 | . . . 2 . . 3 . . . . . . . . . . . Projectile 736 | . 34 40 76 . 1 55 266 1 39 17 3 12 . 7 7 75 103 AOE 4 | . . . . . . . . . . . 1 . . . 3 . . Critical Strikes 27 | . . . 4 . . 3 13 . . . . . . 1 . 3 3 Actively Blocked 10 | . . . . . . . 6 . . . . . . . . 3 1 Part Disruptions 1 | . . . . . . . 1 . . . . . . . . . . Damage Taken 13617 | . 400 837 1322 . 47 983 4699 21 530 246 173 204 . 286 281 1350 2238 Core 3312 | . 82 128 119 . 47 63 799 . 34 44 34 . . . 48 299 1615 Absorbed by Shields . | . . . . . . . . . . . . . . . . . . Ignored by Resistances 124 | . . . . . . . . . 124 . . . . . . . . Regen/Repaired (Parts) 241 | . . . . . . . . . . . 195 . . . 46 . . Core Remaining (%) 73 | 100 . 16 78 . 93 92 20 . . . . 90 . 100 . 76 . Volleys Fired 248 | 4 66 15 65 . 1 41 44 . . . . . . . 2 8 2 Largest 6 | 2 2 2 5 . 4 6 6 . . . . . . . 1 1 1 Hottest 333 | 40 40 50 226 . 176 333 257 . . . . . . . 58 58 10 Shots Fired 717 | 8 132 25 240 . 4 183 113 . . . . . . . 2 8 2 Gun 634 | 8 132 19 240 . 4 162 69 . . . . . . . . . . Cannon 81 | . . 6 . . . 21 44 . . . . . . . 2 8 . Launcher . | . . . . . . . . . . . . . . . . . . Special 2 | . . . . . . . . . . . . . . . . . 2 Kinetic 468 | 8 132 25 119 . 2 73 99 . . . . . . . 2 8 . Thermal 247 | . . . 121 . 2 110 14 . . . . . . . . . . Explosive . | . . . . . . . . . . . . . . . . . . Electromagnetic . | . . . . . . . . . . . . . . . . . . Robot Hit Streak 21 | 4 12 8 21 . 3 16 13 . . . . . . . . 1 1 Robot Miss Streak 7 | 3 4 1 3 . 1 7 7 . . . . . . . 2 5 1 Penetration Max 1 | . . . . . . . 1 . . . . . . . . . . Secondary Targets 3 | . . . 1 . . 2 . . . . . . . . . . . Max Gunslinging Chain 1 | . . . 1 . . 1 . . . . . . . . . . . Shots Hit Robots 508 | 4 94 20 151 . 3 99 86 4 20 . . . 1 . 13 4 9 Core Hits 205 | 2 35 6 59 . 2 43 40 2 5 . . . . . 6 3 2 Critical Kills 1 | . . . 1 . . . . . . . . . . . . . . Critical Parts Destroyed 3 | . 1 . . . . 1 1 . . . . . . . . . . Critical Strikes 21 | . 1 . 5 . 1 5 2 . 3 . . . 1 . 1 . 2 Burn 10 | . . . 4 . 1 4 1 . . . . . . . . . . Destroy 4 | . 1 . 1 . . 1 1 . . . . . . . . . . Impale 7 | . . . . . . . . . 3 . . . 1 . 1 . 2 Melee Attacks 116 | . . . . . . . 21 5 22 4 . . 4 13 20 9 18 Impact . | . . . . . . . . . . . . . . . . . . Slashing 20 | . . . . . . . 20 . . . . . . . . . . Piercing 86 | . . . . . . . 1 5 12 4 . . 4 13 20 9 18 Sneak Attacks 8 | . . . . . . . 1 2 1 . . . . . 4 . . Combat Hostiles 1 | . . . . . . . . . . . . . . . 1 . . Follow-up Attacks . | . . . . . . . . . . . . . . . . . . Damage Inflicted 10898 | 60 787 226 2490 . 48 1966 2719 361 806 . . . 58 . 822 192 363 Guns 6337 | 60 787 132 2489 . 48 1721 1100 . . . . . . . . . . Cannons 1391 | . . 94 . . . 245 968 . . . . . . . . 84 . Explosions . | . . . . . . . . . . . . . . . . . . Melee 3133 | . . . . . . . 615 361 806 . . . 58 . 822 108 363 Ramming 37 | . . . 1 . . . 36 . . . . . . . . . . Kinetic 4404 | 60 787 226 915 . 31 550 1751 . . . . . . . . 84 . Thermal 3324 | . . . 1574 . 17 1416 317 . . . . . . . . . . Explosive . | . . . . . . . . . . . . . . . . . . Electromagnetic . | . . . . . . . . . . . . . . . . . . Impact . | . . . . . . . . . . . . . . . . . . Slashing 615 | . . . . . . . 615 . . . . . . . . . . Piercing 2518 | . . . . . . . . 361 806 . . . 58 . 822 108 363 Highest Corruption 5 | . . . . . . 1 5 . . . . . . . . 2 4 Average Corruption 2 | . . . . . . 1 4 . . . . . . . . 1 3 Corruption Purged . | . . . . . . . . . . . . . . . . . . Corruption Blocked . | . . . . . . . . . . . . . . . . . . Effects 21 | . . . . . . 8 12 . . . . . . . . 1 . Matter Fused 2 | . . . . . . . 2 . . . . . . . . . . Heat Flow Errors 5 | . . . . . . 3 2 . . . . . . . . . . Energy Discharges 4 | . . . . . . 3 1 . . . . . . . . . . Parts Rejected 1 | . . . . . . . 1 . . . . . . . . . . Parts Fused 1 | . . . . . . 1 . . . . . . . . . . . Data Loss (minor) 4 | . . . . . . 1 3 . . . . . . . . . . Data Loss (major) 3 | . . . . . . . 2 . . . . . . . . 1 . Alerts 1 | . . . . . . . 1 . . . . . . . . . . Overload Shots . | . . . . . . . . . . . . . . . . . . Overflow Damage 756 | . . . . . . . 92 27 467 . . . 61 . 98 . 11 Projectiles 19 | . . . . . . . 19 . . . . . . . . . . Explosions . | . . . . . . . . . . . . . . . . . . Melee 737 | . . . . . . . 73 27 467 . . . 61 . 98 . 11 Knockbacks 18 | . . 3 . . . . 14 . . . . . . . . 1 . Impact . | . . . . . . . . . . . . . . . . . . Kinetic 16 | . . 2 . . . . 13 . . . . . . . . 1 . Secondary 2 | . . 1 . . . . 1 . . . . . . . . . . Self-Inflicted Damage 18 | . . . . . . . 18 . . . . . . . . . . Shots . | . . . . . . . . . . . . . . . . . . Rammed 5 | . . . 1 . . . 3 . . . . . . 1 . . . Targets Rammed 5 | . . . 1 . . . 3 . . . . . . 1 . . . Kicked . | . . . . . . . . . . . . . . . . . . Crushed . | . . . . . . . . . . . . . . . . . . Highest Temperature 412 | . 20 . 341 . 12 412 311 . . 13 2 2 . . . 195 . Average Temperature 99 | . 4 . 109 . 9 155 101 . . 7 2 2 . . . 145 . Received Heat Transfer 1827 | . 105 162 513 . . 117 696 . 42 42 12 9 . 12 45 72 . Effects 10 | . . . 7 . . . 3 . . . . . . . . . . Energy Bleed 1 | . . . 1 . . . . . . . . . . . . . . Interference 9 | . . . 6 . . . 3 . . . . . . . . . . Siege Activations . | . . . . . . . . . . . . . . . . . . Martial Activations . | . . . . . . . . . . . . . . . . . . Shielding Activations . | . . . . . . . . . . . . . . . . . . Robots Disrupted . | . . . . . . . . . . . . . . . . . . Combat Hostiles . | . . . . . . . . . . . . . . . . . . Robots Corrupted 1 | . . . . . . . 1 . . . . . . . . . . Combat Hostiles . | . . . . . . . . . . . . . . . . . . Parts Fried . | . . . . . . . . . . . . . . . . . . Impact Corruptions 1 | . . . . . . . 1 . . . . . . . . . . Robots Melted 1 | . . . 1 . . . . . . . . . . . . . . Combat Hostiles 1 | . . . 1 . . . . . . . . . . . . . . Parts Melted 19 | . . 1 10 . . 8 . . . . . . . . . . . Heat Transferred 7446 | . . . 3543 . 111 3144 648 . . . . . . . . . . Parts Sabotaged . | . . . . . . . . . . . . . . . . . . Parts Stolen . | . . . . . . . . . . . . . . . . . . Parts Stripped . | . . . . . . . . . . . . . . . . . . Power Chain Reactions . | . . . . . . . . . . . . . . . . . . Alert | -11 -10 -10 -8 -7 -7 -6 -5 -4 -4 -4 -4 -3 -3 -3 -2 -2 -1 ------- Run | Yrd Mat Sub Mat Fac DSF Fac Fac Fac Upp Upp War Pro Res DSF Res Qua Acc Maximum Alert Level 2 | . . . 2 1 . . 1 . . . . . . . . . . Low Security (%) 86 | 100 100 . 51 . 100 100 60 100 . . . . 100 100 100 100 100 Level 1 11 | . . . 33 100 . . 39 . . . . . . . . . . Level 2 1 | . . . 14 . . . . . . . . . . . . . . Level 3 . | . . . . . . . . . . . . . . . . . . Level 4 . | . . . . . . . . . . . . . . . . . . Level 5 . | . . . . . . . . . . . . . . . . . . High Security . | . . . . . . . . . . . . . . . . . . Max Security . | . . . . . . . . . . . . . . . . . . Peak Influence 446 | 5 75 . 446 200 175 177 362 147 . . . . 63 57 33 65 85 Initial 200 | . . . . 200 140 91 21 147 . . . . 57 45 26 . 33 Average 76 | . 18 . 211 200 150 87 128 9 . . . . 58 44 2 23 21 Influence Increases 4220 | 10 326 . 876 . 35 424 980 47 560 75 75 135 13 42 90 250 282 Destroy 0b10 Robot/C 1400 | . 200 . 540 . 20 300 240 . . . . . . . 20 20 60 Destroy 0b10 Robot/NC 145 | 10 35 . 15 . . 20 20 10 5 . . . 5 . 20 5 . Destroy Leader 336 | . 56 . 144 . . 64 42 2 . . . . 2 . 14 2 10 Allied During Kill 36 | . . . . . . . . . . . . . . . 1 . 35 Successful Hack 185 | . 4 . 36 . . 22 . 18 . . . . . . 8 76 21 Disable Machine 60 | . . . . . . . 15 . . . . . . 15 . 30 . Destroy Structure 93 | . 1 . 6 . . 3 18 2 . . . . 6 12 12 27 6 Partial Spotted 60 | . . . . . . . . 15 . . . . . . . 15 30 Lose Combat Pursuer 1605 | . 30 . 135 . 15 15 345 . 555 75 75 135 . 15 15 75 120 Active Sensor Use 300 | . . . . . . . 300 . . . . . . . . . . Influence Decreases 4200 | 10 320 6 436 240 60 554 725 345 356 190 166 50 38 55 137 193 319 Entered New Map 786 | . . 4 . 240 60 84 24 153 2 40 91 . 28 15 21 . 24 Time Decay 2466 | 10 310 2 386 . . 430 297 45 334 150 75 50 10 . 116 153 98 Search Patrol Dispatched 100 | . . . . . . . 100 . . . . . . . . . . Lost Part 587 | . 10 . 50 . . 40 290 . 20 . . . . 40 . 40 97 Lost Ally 100 | . . . . . . . . . . . . . . . . . 100 Purge Threat 161 | . . . . . . . 14 147 . . . . . . . . . Squads Dispatched 35 | . 2 . 7 . . 6 9 . . . . . . . 2 7 2 Investigation 10 | . 1 . . . . 1 4 . . . . . . . 1 2 1 Extermination 9 | . . . . . . 3 3 . . . . . . . . 2 1 Reinforcement 13 | . 1 . 4 . . 2 2 . . . . . . . 1 3 . Assault . | . . . . . . . . . . . . . . . . . . Garrison 3 | . . . 3 . . . . . . . . . . . . . . Intercept . | . . . . . . . . . . . . . . . . . . Searches Triggered 1 | . . . . . . . 1 . . . . . . . . . . Construction Impeded 1 | . . . 1 . . . . . . . . . . . . . . Haulers Reinforced 1 | . . . . . . . 1 . . . . . . . . . . Active Scanning Responses 3 | . . . . . . . 3 . . . . . . . . . . Cargo Convoy Interrupts . | . . . . . . . . . . . . . . . . . . Stealth | -11 -10 -10 -8 -7 -7 -6 -5 -4 -4 -4 -4 -3 -3 -3 -2 -2 -1 --------- Run | Yrd Mat Sub Mat Fac DSF Fac Fac Fac Upp Upp War Pro Res DSF Res Qua Acc Distress Signals 19 | . . . 5 . . . 4 . . . . 1 . . 7 . 2 Communications Jammed 3 | . . . . . . . 3 . . . . . . . . . . Distress Signals 3 | . . . . . . . 3 . . . . . . . . . . Times Spotted 297 | . 24 4 44 . . 20 38 2 36 7 46 9 1 5 13 23 25 Peak Tracking Total 18 | . 4 3 6 . 1 4 13 2 18 6 12 6 1 4 4 12 13 Tactical Retreats 40 | . 2 . 7 . 1 1 7 . 8 2 3 3 . 1 1 1 3 Traps | -11 -10 -10 -8 -7 -7 -6 -5 -4 -4 -4 -4 -3 -3 -3 -2 -2 -1 ------- Run | Yrd Mat Sub Mat Fac DSF Fac Fac Fac Upp Upp War Pro Res DSF Res Qua Acc Traps Triggered 10 | . 2 . . . . 2 2 2 . . . . . . . 2 . Indirectly . | . . . . . . . . . . . . . . . . . . Trap Hack Attempts . | . . . . . . . . . . . . . . . . . . Triggered . | . . . . . . . . . . . . . . . . . . Disarmed . | . . . . . . . . . . . . . . . . . . Reprogrammed . | . . . . . . . . . . . . . . . . . . Reused . | . . . . . . . . . . . . . . . . . . Traps Extracted . | . . . . . . . . . . . . . . . . . . Installed . | . . . . . . . . . . . . . . . . . . Triggered . | . . . . . . . . . . . . . . . . . . Machines | -11 -10 -10 -8 -7 -7 -6 -5 -4 -4 -4 -4 -3 -3 -3 -2 -2 -1 ---------- Run | Yrd Mat Sub Mat Fac DSF Fac Fac Fac Upp Upp War Pro Res DSF Res Qua Acc Machines Disabled 5 | . . . . . . . 1 . . 1 . . . 1 . 2 . Max in Single Turn 1 | . . . . . . . 1 . . 1 . . . 1 . 1 . Garrison Access 2 | . . . . . . 1 1 . . . . . . . . . . Machines Repaired . | . . . . . . . . . . . . . . . . . . Machines Dismantled . | . . . . . . . . . . . . . . . . . . Machines Sabotaged . | . . . . . . . . . . . . . . . . . . Overloaded Fab Kills . | . . . . . . . . . . . . . . . . . . Hacking | -11 -10 -10 -8 -7 -7 -6 -5 -4 -4 -4 -4 -3 -3 -3 -2 -2 -1 --------- Run | Yrd Mat Sub Mat Fac DSF Fac Fac Fac Upp Upp War Pro Res DSF Res Qua Acc Machines Accessed 50 | . 5 . 5 1 . 7 5 1 1 1 8 . 2 . 2 8 4 Terminals 27 | . 4 . 4 1 . 2 3 1 . . . . 2 . . 7 3 Fabricators 4 | . . . . . . 2 . . . . . . . . 1 . 1 Repair Stations . | . . . . . . . . . . . . . . . . . . Recycling Units 3 | . 1 . . . . 1 1 . . . . . . . . . . Scanalyzers 3 | . . . 1 . . 1 . . . . . . . . . 1 . Garrison Access 3 | . . . . . . 1 1 . . . . . . . 1 . . Total Hacks 102 | . 14 . 21 2 . 13 10 2 1 1 9 . 3 . 3 17 6 Successful 50 | . 6 . 12 1 . 6 4 2 1 1 9 . 1 . 1 5 1 Failed 52 | . 8 . 9 1 . 7 6 . . . . . 2 . 2 12 5 Catastrophic 13 | . . . . . . 3 1 . . . . . 1 . 1 4 3 Database Lockouts . | . . . . . . . . . . . . . . . . . . Manual 41 | . 7 . 16 . . 4 6 . . . . . 2 . . 6 . Terminals 69 | . 13 . 19 2 . 4 6 2 . . . . 3 . . 15 5 Fabricators 6 | . . . . . . 4 . . . . . . . . 1 . 1 Repair Stations . | . . . . . . . . . . . . . . . . . . Recycling Units 4 | . 1 . . . . 1 2 . . . . . . . . . . Scanalyzers 6 | . . . 2 . . 2 . . . . . . . . . 2 . Garrison Access 6 | . . . . . . 2 2 . . . . . . . 2 . . Terminal Hacks 30 | . 2 . 7 1 . 1 1 2 1 1 9 . 1 . . 3 1 Record 14 | . . . . . . 1 . . 1 1 7 . . . . 3 1 Robot Analysis 1 | . 1 . . . . . . . . . . . . . . . . Prototype ID Bank 1 | . . . 1 . . . . . . . . . . . . . . Open Door 2 | . . . . . . . . . . . 2 . . . . . . Open DSF 2 | . . . . 1 . . . . . . . . 1 . . . . Branch Access Points 1 | . . . 1 . . . . . . . . . . . . . . Terminal Index 1 | . . . 1 . . . . . . . . . . . . . . Fabricator Index 1 | . . . 1 . . . . . . . . . . . . . . Scanalyzer Index 1 | . . . 1 . . . . . . . . . . . . . . Alert Level 1 | . . . 1 . . . . . . . . . . . . . . Unreport Threat 3 | . . . . . . . 1 2 . . . . . . . . . Zone Layout 2 | . 1 . 1 . . . . . . . . . . . . . . Fabricator Hacks 2 | . . . . . . 1 . . . . . . . . 1 . . Build 2 | . . . . . . 1 . . . . . . . . 1 . . Repair Station Hacks . | . . . . . . . . . . . . . . . . . . Recycling Unit Hacks 3 | . 1 . . . . 1 1 . . . . . . . . . . Report Inventory 3 | . 1 . . . . 1 1 . . . . . . . . . . Scanalyzer 5 | . . . 1 . . 2 . . . . . . . . . 2 . Retrieve Study 5 | . . . 1 . . 2 . . . . . . . . . 2 . Garrison Access Hacks 2 | . . . . . . 1 1 . . . . . . . . . . Seal Access 2 | . . . . . . 1 1 . . . . . . . . . . Unauthorized Hacks 8 | . 3 . 4 . . . 1 . . . . . . . . . . Terminals 8 | . 3 . 4 . . . 1 . . . . . . . . . . Botnet 8 | . 3 . 4 . . . 1 . . . . . . . . . . Fabricators . | . . . . . . . . . . . . . . . . . . Repair Stations . | . . . . . . . . . . . . . . . . . . Recycling Units . | . . . . . . . . . . . . . . . . . . Scanalyzers . | . . . . . . . . . . . . . . . . . . Garrison Access . | . . . . . . . . . . . . . . . . . . Data Cores Recovered 1 | . . . . . . . . . . . . . . . . 1 . Used 1 | . . . . . . . . . . . . . . . . 1 . Hacking Detections 34 | . 4 . 5 1 . 4 4 1 . . . . 2 . 2 7 4 Full Trace Events 9 | . 3 . . . . 1 1 . . . . . . . 1 2 1 Feedback Events . | . . . . . . . . . . . . . . . . . . Feedback Blocked . | . . . . . . . . . . . . . . . . . . Robot Schematics Acquired 1 | . . . . . . . . . . . . . . . . 1 . Robots Built 1 | . . . . . . . . . . . . . . . 1 . . Authchips . | . . . . . . . . . . . . . . . . . . Time 338 | . . . . . . 116 . . . . . . . . 222 . . Total Robot Build Rating 9 | . . . . . . . . . . . . . . . 9 . . Part Schematics Acquired 1 | . . . . . . . . . . . . . . . . 1 . Parts Built . | . . . . . . . . . . . . . . . . . . Authchips . | . . . . . . . . . . . . . . . . . . Time . | . . . . . . . . . . . . . . . . . . Total Part Build Rating . | . . . . . . . . . . . . . . . . . . Part Studies Acquired 5 | . . . 1 . . 2 . . . . . . . . . 2 . Parts Repaired . | . . . . . . . . . . . . . . . . . . Time . | . . . . . . . . . . . . . . . . . . Parts Recycled . | . . . . . . . . . . . . . . . . . . Recycled Matter . | . . . . . . . . . . . . . . . . . . Retrieved Matter . | . . . . . . . . . . . . . . . . . . Retrieved Components . | . . . . . . . . . . . . . . . . . . Parts Scanalyzed . | . . . . . . . . . . . . . . . . . . Part Schematics Acquired . | . . . . . . . . . . . . . . . . . . Parts Damaged . | . . . . . . . . . . . . . . . . . . Bothacking | -11 -10 -10 -8 -7 -7 -6 -5 -4 -4 -4 -4 -3 -3 -3 -2 -2 -1 ------------ Run | Yrd Mat Sub Mat Fac DSF Fac Fac Fac Upp Upp War Pro Res DSF Res Qua Acc Used RIF Installer . | . . . . . . . . . . . . . . . . . . Robots Hacked 2 | . . . . . . . . . 1 . . . . . . . 1 Non-combat 1 | . . . . . . . . . 1 . . . . . . . . Combat 1 | . . . . . . . . . . . . . . . . . 1 Robot Hacks Applied 2 | . . . . . . . . . 1 . . . . . . . 1 parse_system 2 | . . . . . . . . . 1 . . . . . . . 1 Relay Couplers Released . | . . . . . . . . . . . . . . . . . . Fabnet Peak Effective % . | . . . . . . . . . . . . . . . . . . Robots Rewired . | . . . . . . . . . . . . . . . . . . Allies Hacked . | . . . . . . . . . . . . . . . . . . Hacks Repelled . | . . . . . . . . . . . . . . . . . . Allies | -11 -10 -10 -8 -7 -7 -6 -5 -4 -4 -4 -4 -3 -3 -3 -2 -2 -1 -------- Run | Yrd Mat Sub Mat Fac DSF Fac Fac Fac Upp Upp War Pro Res DSF Res Qua Acc Total Allies 7 | . . . . . . . . . . . . . . . 1 . 6 Largest Group 6 | . . . . . . . . . . . . . . . 1 . 6 Highest-Rated Group 80 | . . . . . . . . . . . . . . . 62 . 80 Highest-Rated Ally 62 | . . . . . . . . . . . . . . . 62 . 15 Total Orders . | . . . . . . . . . . . . . . . . . . Ally Attacks 13 | . . . . . . . . . . . . . . . 5 . 8 Total Damage 248 | . . . . . . . . . . . . . . . . . 248 Kills 3 | . . . . . . . . . . . . . . . . . 3 Allies Corrupted . | . . . . . . . . . . . . . . . . . . Allies Melted 1 | . . . . . . . . . . . . . . . 1 . . Intel | -11 -10 -10 -8 -7 -7 -6 -5 -4 -4 -4 -4 -3 -3 -3 -2 -2 -1 ------- Run | Yrd Mat Sub Mat Fac DSF Fac Fac Fac Upp Upp War Pro Res DSF Res Qua Acc Active Infowar (turns) 7503 | . 721 440 300 . . 980 869 180 430 300 1139 119 27 111 1287 402 198 Optics 255 | . . 240 . . . . . . . . . . 3 12 . . . Sensors 4661 | . . . . . . 528 23 180 430 300 1139 119 27 111 1287 351 166 A.S.S. 1298 | . . . . . . 452 846 . . . . . . . . . . Structural 1371 | . 721 350 300 . . . . . . . . . . . . . . Seismic 271 | . . . . . . . . . . . . . . . . 271 . Machine Analysis 1620 | . . . . . . . . . . . . . . . 1020 402 198 Cloaking 23 | . . . . . . . . . . . . . . . . 23 . Jamming 32 | . . . . . . . 32 . . . . . . . . . . Robot Analysis Total 1 | . 1 . . . . . . . . . . . . . . . . Derelict Logs Recovered 3 | . . . . . . . . . 1 2 . . . . . . . Drone Launches . | . . . . . . . . . . . . . . . . . . Drone Recoveries . | . . . . . . . . . . . . . . . . . . Exploration | -11 -10 -10 -8 -7 -7 -6 -5 -4 -4 -4 -4 -3 -3 -3 -2 -2 -1 ------------- Run | Yrd Mat Sub Mat Fac DSF Fac Fac Fac Upp Upp War Pro Res DSF Res Qua Acc Turns Passed 9843 | 83 979 469 904 5 58 1436 1332 180 742 300 1139 119 27 111 1287 402 270 Spaces Moved 9609 | 45 563 376 452 3 45 824 791 392 1007 609 1599 350 38 106 1365 740 304 Core 31 | 3 . . . . . . 6 . 8 . 3 . . . . . 11 Treads 23 | . . 3 20 . . . . . . . . . . . . . . Legs 655 | 42 563 42 . . . . 8 . . . . . . . . . . Wheels 2233 | . . 331 432 3 45 824 598 . . . . . . . . . . Hover . | . . . . . . . . . . . . . . . . . . Flight 6667 | . . . . . . . 179 392 999 609 1596 350 38 106 1365 740 293 Fastest Speed 29 | 50 120 105 105 90 90 102 37 34 34 34 34 34 29 29 29 29 37 Average Speed 58 | 115 120 108 123 110 90 116 85 34 37 34 35 34 29 29 31 30 44 Slowest Speed 650 | 120 120 160 240 120 90 135 600 34 450 34 650 34 29 34 112 39 250 Overloaded Moves . | . . . . . . . . . . . . . . . . . . Propulsion Burnouts . | . . . . . . . . . . . . . . . . . . Robots Hopped 17 | . . . . . . . 8 . 1 2 . 2 . 1 . 3 . Potential Cave-ins . | . . . . . . . . . . . . . . . . . . Cave-ins Triggered . | . . . . . . . . . . . . . . . . . . Exploration Rate (%) 43 | 4 78 31 44 . 43 20 16 9 98 69 96 64 1 82 24 58 8 Regions Visited 17 Branch Regions 6 Pre-discovered Areas 1 | . . . . . . . . . . 1 . . . . . . . Known Exits Taken 4 | . . . 1 1 . 1 . . . . . . 1 . . . . Unknown Exits Taken 11 | 1 1 1 . . . . 1 1 1 1 1 1 . . 1 1 . Scrap Searched 5 | . . . . . . . . . 2 2 . 1 . . . . . Spaces Dug 24 | . . . . . . . . 1 2 3 . . 3 6 3 4 2 Terrain Destroyed 38 | . . . . . . . 8 1 2 3 . . 3 6 4 9 2 Melee 23 | . . . . . . . . 1 2 3 . . 3 6 3 3 2 Projectile 15 | . . . . . . . 8 . . . . . . . 1 6 . AOE . | . . . . . . . . . . . . . . . . . . Terrain Rammed . | . . . . . . . . . . . . . . . . . . Walls Destroyed . | . . . . . . . . . . . . . . . . . . Machines Disabled . | . . . . . . . . . . . . . . . . . . Actions | -11 -10 -10 -8 -7 -7 -6 -5 -4 -4 -4 -4 -3 -3 -3 -2 -2 -1 --------- Run | Yrd Mat Sub Mat Fac DSF Fac Fac Fac Upp Upp War Pro Res DSF Res Qua Acc Total 13221 | 64 763 416 675 4 62 1232 1314 431 1356 693 2167 347 46 166 2198 886 401 Wait 2825 | 2 104 . 104 . 9 277 398 1 325 78 558 . . 33 772 100 64 Move 9563 | 44 562 375 451 2 44 823 775 391 1004 605 1598 346 37 104 1364 734 304 Hop 13 | . . . . . . . 7 . 1 1 . 1 . 1 . 2 . Pick Up 84 | 7 8 6 14 . 4 20 6 2 1 2 1 . . 5 8 . . Fast Attach 103 | 7 1 5 8 . . 12 26 4 1 1 2 . 1 3 11 13 8 Attach 46 | . 1 6 6 2 . 7 9 2 . . . . 3 3 2 2 3 Detach 18 | . . 2 . . . 2 4 2 . . . . 1 2 1 2 2 Swap 42 | . 8 1 9 . 1 15 3 . . . 3 . . . 2 . . Drop 118 | . 13 4 17 . 3 35 10 3 2 2 5 . . 2 16 6 . Fire 248 | 4 66 15 65 . 1 41 44 . . . . . . . 2 8 2 Melee 115 | . . . . . . . 21 5 22 4 . . 4 13 20 8 18 Ram 4 | . . . 1 . . . 3 . . . . . . . . . . Kick . | . . . . . . . . . . . . . . . . . . Crush . | . . . . . . . . . . . . . . . . . . Escape Stasis 40 | . . . . . . . 8 21 . . . . . . . 11 . Rewire 2 | . . 2 . . . . . . . . . . . . . . . Trap . | . . . . . . . . . . . . . . . . . . Miscellaneous . | . . . . . . . . . . . . . . . . . . Route ------- -11/Scrapyard -10/Materials (discovered 4 exits: [*Mat x2] / [*Min] / [*Sub]) -10/Subcaves -8/Materials -7/Factory -7/DSF -6/Factory -5/Factory -4/Factory -4/Upper Caves -4/Upper Caves (discovered 2 exits: *Res / *War) -4/Warlord -3/Proximity Caves -3/Research (discovered 2 exits: Res / DSF) -3/DSF -2/Research -2/Quarantine -1/Access History --------- Turn | Location | Event 8 | -11/Scrapyard | Discovered new exit (range 15) 84 | -11/Scrapyard | Entered Materials 306 | -10/Materials | Build established: Mutant 573 | -10/Materials | Discovered new exit (range 7) 689 | -10/Materials | Discovered new exit (range 13) 776 | -10/Materials | Discovered new exit (range 14) 943 | -10/Materials | Discovered new exit (range 16) 1063 | -10/Materials | Entered Subcaves 1116 | -10/Subcaves | A Subdweller sparked back to life 1116 | -10/Subcaves | A Subdweller sparked back to life 1116 | -10/Subcaves | A Subdweller sparked back to life 1129 | -10/Subcaves | Core integrity fell below 50% 1154 | -10/Subcaves | Core integrity fell below 20% 1167 | -10/Subcaves | Found Prototype Power Core 1167 | -10/Subcaves | Identified Meta Core 1169 | -10/Subcaves | Attached Meta Core, gained temporary slots: Propulsion, Utility, Weapon 1182 | -10/Subcaves | Lost 6 parts (1p2n3w) 1355 | -10/Subcaves | Shifting Twisted Machinery released Sub. Power Source 1355 | -10/Subcaves | Shifting Twisted Machinery released Sub. Beam Cannon 1494 | -10/Subcaves | Shifting Twisted Machinery released Sub. Laser 1498 | -10/Subcaves | Shifting Twisted Machinery released Piercing Trap 1519 | -10/Subcaves | Discovered new exit (range 9) 1532 | -10/Subcaves | Entered Materials 1532 | -8/Materials | Evolved 4 slots: Utility x2, Weapon x2 1705 | -8/Materials | Garrison activated, responded to threat 2118 | -8/Materials | Build established: Scavenger-Tank 2423 | -8/Materials | Discovered new exit (range 4) 2428 | -8/Materials | Identified exit to Factory 2436 | -8/Materials | Entered Factory 2436 | -7/Factory | Evolved 2 slots: Propulsion x2 2439 | -7/Factory | Identified exit to DSF 2441 | -7/Factory | Entered DSF 2458 | -7/DSF | Discovered new exit (range 12) 2461 | -7/DSF | Build established: Scavenger-Gunner 2466 | -7/DSF | Additional patrols routed to DSF 2469 | -7/DSF | Identified exit to Factory 2499 | -7/DSF | Entered Factory 2499 | -6/Factory | Evolved 2 slots: Weapon x2 2782 | -6/Factory | Build established: Scavenger-Executioner 3038 | -6/Factory | Found Prototype Device 3483 | -6/Factory | Identified Active Sensor Suite 3868 | -6/Factory | Discovered new exit (range 7) 3873 | -6/Factory | Identified exit to Factory 3935 | -6/Factory | Entered another Factory area 3935 | -5/Factory | Evolved 2 slots: Utility x2 4216 | -5/Factory | Build established: Executioner 4847 | -5/Factory | Lost 11 parts (1p3n3u4w) 4995 | -5/Factory | Lost 5 parts (2n1u2w) 5135 | -5/Factory | Search patrols dispatched 5136 | -5/Factory | Core integrity fell below 50% 5205 | -5/Factory | Lost 11 parts (1p5n2u3w) 5252 | -5/Factory | Discovered new exit (range 15) 5267 | -5/Factory | Entered another Factory area 5267 | -4/Factory | Evolved 2 slots: Propulsion x2 5408 | -4/Factory | Discovered new exit (range 4) 5442 | -4/Factory | Build established: Mutant 5447 | -4/Factory | Entered Upper Caves 5449 | -4/Upper Caves | Attracted the attention of an 0b10 checkpoint 5525 | -4/Upper Caves | Entered a destroyed Warlord outpost 5675 | -4/Upper Caves | Attracted the attention of an 0b10 base 5681 | -4/Upper Caves | Learned Research interactive machine intel 6187 | -4/Upper Caves | Discovered new exit (range 8) 6189 | -4/Upper Caves | Entered another Upper Caves area 6237 | -4/Upper Caves | Discovered new exit (range 4) 6286 | -4/Upper Caves | Learned location of 1 exit from Research 6309 | -4/Upper Caves | Learned location of Testing (-3) 6387 | -4/Upper Caves | Found Alien Artifact 6387 | -4/Upper Caves | Identified Dimensional Node Initializer 6387 | -4/Upper Caves | Initialized slip node 6479 | -4/Upper Caves | Discovered new exit (range 15) 6489 | -4/Upper Caves | Entered Warlord 6516 | -4/Warlord | Discovered new exit (range 8) 6569 | -4/Warlord | Found Prototype Device 6569 | -4/Warlord | Identified Minesniffer Drone Bay 6669 | -4/Warlord | Met Warlord 6694 | -4/Warlord | Warlord's base attacked by MAIN.C 6871 | -4/Warlord | Spotted B-86 Titan 6903 | -4/Warlord | Warlord forces counterattacked 6913 | -4/Warlord | Lost 3 allies 6926 | -4/Warlord | Spotted B-90 Cyclops 7036 | -4/Warlord | Lost 3 allies 7071 | -4/Warlord | Opened side exit 7077 | -4/Warlord | Spotted Striker 7198 | -4/Warlord | Lost 9 allies 7369 | -4/Warlord | Warlord base infiltrated, sounded retreat 7374 | -4/Warlord | Spotted Striker 7413 | -4/Warlord | Lost 4 allies 7475 | -4/Warlord | Spotted Striker 7536 | -4/Warlord | Spotted Striker 7628 | -4/Warlord | Entered Proximity Caves 7670 | -3/Proximity Caves | Spotted B-86 Titan 7735 | -3/Proximity Caves | Discovered new exit (range 16) 7747 | -3/Proximity Caves | Entered Research 7747 | -3/Research | Evolved 2 slots: Propulsion x2 7748 | -3/Research | Identified exit to Research 7749 | -3/Research | Loaded intel: 42 interactive machine locations 7774 | -3/Research | Identified exit to DSF 7774 | -3/Research | Entered DSF 7798 | -3/DSF | Additional patrols routed to DSF 7805 | -3/DSF | Discovered exit to Research (range 16) 7833 | -3/DSF | Lost 3 parts (1n2u) 7885 | -3/DSF | Entered Research 7885 | -2/Research | Warlord forces began assault on 0b10 7885 | -2/Research | Evolved 2 slots: Utility x2 7995 | -2/Research | Research machine network offline 8130 | -2/Research | Fabricated C-65 Expert? 8135 | -2/Research | Spotted Striker 8190 | -2/Research | Lost 4 allies 8317 | -2/Research | Met DD-05H 8383 | -2/Research | Borebot progress halted 8390 | -2/Research | Spotted B-90 Cyclops 8445 | -2/Research | Met up with Warlord 8452 | -2/Research | Build established: Scavenger-Sprinter 8886 | -2/Research | Spotted Striker 8949 | -2/Research | Borebot progress halted 9091 | -2/Research | Discovered new exit (range 13) 9172 | -2/Research | Entered Quarantine 9229 | -2/Quarantine | Found Prototype Device 9229 | -2/Quarantine | Identified Adv. Kinecellerator 9264 | -2/Quarantine | Found Alien Reactor 9264 | -2/Quarantine | Identified Matter Drive 9281 | -2/Quarantine | Found Prototype Device 9281 | -2/Quarantine | Identified Exp. EM Shield 9320 | -2/Quarantine | Found Alien Artifact 9320 | -2/Quarantine | Identified Subatomic Replicator 9326 | -2/Quarantine | Found Alien Artifact 9326 | -2/Quarantine | Identified Core Reset Matrix 9326 | -2/Quarantine | Used Core Reset Matrix 9330 | -2/Quarantine | Detected hypermatrix surge 9330 | -2/Quarantine | Sensed 12 artifacts in vicinity 9381 | -2/Quarantine | Lost 4 allies 9486 | -2/Quarantine | Scanned by Researcher 9567 | -2/Quarantine | Discovered new exit (range 16) 9574 | -2/Quarantine | Entered Access 9574 | -1/Access | Evolved 2 slots: Power x1, Propulsion x1 9576 | -1/Access | Lost 11 parts (5n5u1w) 9769 | -1/Access | Lost 3 allies 9799 | -1/Access | Core integrity fell below 50% 9812 | -1/Access | Emitted hypermatrix ping 9817 | -1/Access | Assembled emerged from beneath the floor 9829 | -1/Access | Core integrity fell below 20% 9835 | -1/Access | Lost 10 parts (4n5u1w) 9844 | -1/Access | Destroyed by S-43 Plague with Heavy Machine Gun Last Messages --------------- (Impale). 09833_ as-66414 suffers critical hit (Destroy). 09833_ as-66414 destroyed. 09834_ Acquired 17 matter. 09835_ as-45828 destroyed. 09836_ Acquired 18 matter. 09836_ Slug penetrates Wall. 09836_ Acquired 5 matter. 09839_ Slug penetrates Wall. 09839_ Slug penetrates S-43 Plague. 09839_ S-43 Plague suffers critical hit (Destroy). 09839_ S-43 Plague destroyed. 09840_ Penetrated by Slug. 09840_ Imp. Melee Analysis Suite destroyed. 09840_ Penetrated by Slug. 09843_ Adv. Remote Datajack destroyed. 09843_ Penetrated by Slug. 09843_ Adv. Heat Sink destroyed. [Achievement: 20k Club] Map ----- +----------------------------------------------------+ | ???????????????????????????# "" # # | | ???????????????????????????# # # | | ???????????????????????????# # # | | ???????????????????????????####+###### # | | ??????????????????????????????# ?????# # | | ??????????????????????????????# ?????# # | | ??????????????????????????????# ?????# ###+# | | ??????????????????????????????# ?????# | | ?????????????????????????????## ###### | | ?????????????????????????????# =% | | ?????????????????????????????# ##### ! | | ?????????????????????????????# #???# %! | | ?????????????????????????????# #???# = | | ????????????????????????????## ##??# | | ????????????????????????????# #??############# | | ????????????????????????????# "T #### """T""" | | ????????????????????????????+ "" / """ """ | | ????????????????????????????# #### | | ????????????????????????????# #??# | | ????????????????????????????### ###### """"" | | ??????????????????????????????# # # """"" | | ??????????????????????????????# # ! # """"" | | ???????????????#######????????# + # """"" ! | | ???????????????# #####???# # # """""* | | ???????????????# /gs=#???# # # [ | | ???????????????# %###@#???# #? # [= | | ???????????????# ??#s#???# #?#########"###### | | ???????????????# ???#h#???# ##############???? | | ???????????????# !???#h%???# ??? | | ???????????????# ??###h%#### ??? | | ???????????????# ??# =%* # ^ ??? | | ???????????????# ???# % # ??? | | ???????????????# ???#"s # ??? | | ???????????????# ????#"" # " "??? | | ???????????????/ ????#"" p # """ "???? | | ?????????????? # ?????#"" ]# """ ""???? | | ????????????? # ?????#"" # " "???? | | ???????????????#??????#"T # ??? | | ??????????????????????#"" / ??? | | ??????????????????????#"" # ??? | | ??????????????????????#"" # " ???? | | ??????????????????????#"" # """ "???? | | ??????????????????????#" # """ "????? | | ??????????????????????# ! # " ???????? | | ??????????????????????# # ???????? | | ??????????????????????# # ???????? | | ??????????????????????# # ??????? | | ??????????????????????######### " ?????? | | ??????????????????????????????? """ ?????? | | ???????????????????????????????# """ ? ??????? | +----------------------------------------------------+ Best States ------------- Heat Dissipation 83 Coolant Potential 50 Energy Generation 25 Energy Capacity 350 Matter Stores 300 Matter Capacity 300 Sight Range 21 Robot Scan Range 20 Terrain Scan Density 10 Jamming Range 12 Cloak Strength 4 Armor Coverage 600 Resistance: KI 25 Weapon Cycling 15 Phase Shifting 15 Evasion (%) 74 Melee Accuracy 6 Recoil Reduction 1 Energy Filtering 30 Kinecelleration 50 Offensive Hacking 10 Item Schematics ----------------- Enh. Biometal Leg | -2/Quarantine | Archive Robot Schematics ------------------ R-06 Scavenger | -2/Quarantine | Archive Fabricated ------------ C-65 Expert | x1 | -2/Research | Preloaded Repaired ---------- Nothing Studied --------- None Alien Tech Used ----------------- Dimensional Node Initializer Matter Drive Subatomic Replicator Core Reset Matrix Achievements -------------- 20k Club Alien Roots All-out Warlord Doshington My Command Is Your Wish Protector Some Acronyms Are Better Than Others Challenges ------------ None Game ------ Seed BottomlessRapidSystem Manual? 0 Play Time 02:14:28 Cumulative 77.5 hours Start 2026.02.02 @ 08:23:57 End 2026.02.02 @ 10:37:17 Sessions 1 Manual Loads 0 Difficulty Rogue Special Mode None Game No. 57 Rogue 53 Adventurer 4 Explorer 0 Win Type - Total 1 Types 1/0/0/0/0/0/0/0/0/0 Lore% 46 Gallery% 44 Achievement% 36 Wizard Run 0 Options --------- Layout 1 ASCII 0 Keyboard 1 Movement Vi Keybinds 0 Fullscreen 0 Font 20/SmallcapsGlow Map View 50x35 Zoom Use 0% Tactical HUD 1 Map Filters NONE Filters NONE Steam 1 RUN: 3a19876c-ae55-4937-9c25-512f59a671e8